bitfinex-derivatives/quotes_SOLF0:USTF0_20260204
["timestamp","ask_amount","ask_price","bid_price","bid_amount"]
[1770234308925,3.72890499,94.097,94.041,3.59858003]
[1770234309527,3.72890499,94.084,94.022,3.59858003]
[1770234310033,3.72890499,94.114,94.022,3.59858003]
[1770234310435,3.72890499,94.114,94.045,3.59858003]
[1770234311838,3.72890499,94.113,94.047,9.5879]
[1770234312038,3.72890499,94.113,94.016,3.59858003]
[1770234312343,9.5857,94.069,94.016,3.59858003]
[1770234312539,3.72890499,94.09,94.016,3.59858003]
[1770234312843,3.72890499,94.088,94.022,3.59858003]
[1770234313343,3.72890499,94.088,93.99,7.94661951]
[1770234313344,3.72890499,94.088,94.004,3.59858003]
[1770234313543,3.72890499,94.087,94.019,3.59858003]
[1770234314344,3.72890499,94.106,94.039,3.59858003]
[1770234314838,3.72890499,94.106,94.053,9.5872]
[1770234315038,3.72890499,94.106,94.039,3.59858003]
[1770234315640,9.582,94.105,94.043,9.5882]
[1770234315839,3.72890499,94.106,94.027,3.59858003]
[1770234316245,9.5839,94.087,94.027,3.59858003]
[1770234316540,3.72890499,94.086,94.01,3.59858003]
[1770234317048,13.31390499,94.076,94.012,9.5914]
[1770234317245,13.31390499,94.076,94.013,3.59858003]
[1770234317441,3.72890499,94.075,94.013,3.59858003]
[1770234317946,9.5855,94.072,94.015,9.5911]
[1770234319049,9.5866,94.06,94.013,3.59858003]
[1770234319457,3.72890499,94.075,93.98,3.59858003]
[1770234320445,7.94661951,94.1,93.981,3.59858003]
[1770234320446,3.72890499,94.048,93.981,3.59858003]
[1770234321151,3.72890499,94.048,93.995,9.5932]
[1770234321650,3.72890499,94.099,93.996,3.59858003]
[1770234321850,9.5857,94.069,94.012,9.5914]
[1770234322351,3.72890499,94.068,94.012,9.5914]
[1770234322546,9.5865,94.061,94.0,9.5927]
[1770234322848,13.31540499,94.061,94.001,3.59858003]
[1770234323645,9.5872,94.055,94.001,3.59858003]
[1770234323850,9.5872,94.055,93.995,9.5931]
[1770234323851,3.72240302,94.06,93.986,3.73297416]
[1770234324347,9.5879,94.047,93.989,3.73297416]
[1770234325443,9.5879,94.047,93.993,9.5933]
[1770234326250,9.5879,94.047,93.989,3.73297416]
[1770234326450,9.5883,94.044,93.989,3.73297416]
[1770234326750,3.72240302,94.044,93.989,3.73297416]
[1770234327345,3.72240302,94.044,93.97,3.73297416]
[1770234328247,9.5894,94.033,93.97,3.73297416]
[1770234328450,13.31180302,94.033,93.97,3.73297416]
[1770234328753,13.31200302,94.031,93.972,9.5956]
[1770234329451,13.31200302,94.031,93.972,3.73297416]
[1770234329953,9.5909,94.018,93.972,3.73297416]
[1770234331052,3.72240302,94.027,93.956,3.73297416]
[1770234331755,9.5904,94.023,93.959,9.5969]
[1770234332051,27.11581951,94.08,93.96,3.73297416]
[1770234332052,3.72240302,94.077,93.96,3.73297416]
[1770234332554,9.5883,94.044,93.982,3.73297416]
[1770234332749,3.72240302,94.043,93.982,3.73297416]
[1770234332947,3.72240302,94.043,93.966,3.73297416]
[1770234333147,9.5895,94.032,93.968,3.73297416]
[1770234333353,3.72240302,94.031,93.968,3.73297416]
[1770234333752,9.5903,94.024,93.968,3.73297416]
[1770234335856,9.5903,94.024,93.97,13.32867416]
[1770234336055,9.5903,94.024,93.971,3.73297416]
[1770234336357,3.72240302,94.068,93.975,3.73297416]
[1770234336955,3.72240302,94.042,93.988,9.5939]
[1770234337160,3.72240302,94.042,93.975,3.73297416]
[1770234338862,13.31190302,94.032,93.976,9.5951]
[1770234339064,3.72240302,94.049,93.977,3.73297416]
[1770234339659,9.5885,94.042,93.986,3.73297416]
[1770234339862,3.72240302,94.049,93.986,3.73297416]
[1770234341966,3.72240302,94.046,93.986,3.73297416]
[1770234342757,9.5886,94.041,93.986,3.73297416]
[1770234343975,9.5886,94.041,93.988,9.5939]
[1770234344169,3.72240302,94.04,93.988,9.5939]
[1770234344365,13.31120302,94.038,93.988,9.5939]
[1770234344869,3.72240302,94.038,93.988,9.5939]
[1770234345274,9.5894,94.033,93.986,3.73297416]
[1770234345470,3.72240302,94.038,93.986,3.73297416]
[1770234345873,3.72240302,94.038,93.99,9.5937]
[1770234347274,3.72240302,94.036,93.986,3.73297416]
[1770234347470,3.72240302,94.036,93.96,7.94661951]
[1770234347471,3.72240302,94.036,93.961,3.73297416]
[1770234347673,3.72240302,94.013,93.961,3.73297416]
[1770234347868,3.72240302,94.013,93.941,3.73297416]
[1770234348068,9.5935,93.993,93.941,3.73297416]
[1770234348272,13.31590302,93.993,93.941,3.73297416]
[1770234348771,9.5946,93.982,93.941,3.73297416]
[1770234349171,3.72240302,93.993,93.941,3.73297416]
[1770234350377,3.72240302,93.993,93.942,9.5986]
[1770234351077,3.72240302,93.991,93.941,3.73297416]
[1770234351277,3.72240302,94.039,93.941,3.73297416]
[1770234351679,9.5929,93.998,93.941,3.73297416]
[1770234351879,3.72240302,94.048,93.941,3.73297416]
[1770234352780,3.72240302,94.019,93.955,13.33027416]
[1770234353081,3.72240302,94.019,93.956,3.73297416]
[1770234353684,3.7721442,94.017,93.956,3.73297416]
[1770234354085,3.7721442,94.033,93.959,3.81061891]
[1770234354279,3.7721442,94.018,93.959,3.81061891]
[1770234354480,3.7721442,94.018,93.961,3.81061891]
[1770234354676,3.7721442,94.063,93.961,3.81061891]
[1770234355080,3.7721442,94.063,93.978,3.81061891]
[1770234355779,3.7721442,94.031,93.971,9.5956]
[1770234355985,3.7721442,94.031,93.962,3.81061891]
[1770234357789,13.3622442,94.026,93.963,3.81061891]
[1770234358084,19.1717,94.068,93.963,3.81061891]
[1770234358085,3.7721442,94.025,93.963,3.81061891]
[1770234358587,3.7721442,94.025,93.97,2.96716791]
[1770234358976,3.7721442,94.025,93.963,3.81061891]
[1770234358977,3.7721442,94.025,93.98,2.96716791]
[1770234359181,3.7721442,94.025,93.919,31.98]
[1770234359182,3.52967604,94.041,93.99,2.96716791]
[1770234359886,3.52967604,94.039,93.981,3.85977281]
[1770234360485,3.52967604,94.019,93.95,2.96716791]
[1770234360690,3.52967604,94.009,93.94,2.96716791]
[1770234360980,3.52967604,94.009,93.94,6.82694072]
[1770234361384,3.52967604,94.029,93.97,2.96716791]
[1770234361576,3.52967604,94.029,93.98,2.96716791]
[1770234361784,3.52967604,94.029,93.97,2.96716791]
[1770234362186,3.52967604,94.029,93.98,2.96716791]
[1770234362388,3.52967604,94.029,93.99,2.96716791]
[1770234362585,3.52967604,94.029,93.98,2.96716791]
[1770234362790,3.52967604,94.029,93.973,3.85977281]
[1770234362991,9.591,94.017,93.973,3.85977281]
[1770234363585,3.52967604,94.06,94.001,3.85977281]
[1770234363787,3.52967604,94.094,94.03,2.96716791]
[1770234364789,9.585,94.076,94.03,2.96716791]
[1770234364985,3.52967604,94.115,94.06,2.96716791]
[1770234365185,9.5781,94.144,94.08,2.96716791]
[1770234365382,2.96716791,94.15,94.08,2.96716791]
[1770234365383,3.52967604,94.143,94.08,2.96716791]
[1770234365784,3.52967604,94.143,94.1,2.96716791]
[1770234365983,3.52967604,94.143,94.08,2.96716791]
[1770234366184,3.52967604,94.143,94.09,2.96716791]
[1770234366395,3.52967604,94.141,94.061,3.85977281]
[1770234367083,3.52967604,94.129,94.061,3.85977281]
[1770234367386,3.52967604,94.154,94.071,3.85977281]
[1770234367591,3.52967604,94.154,94.084,3.85977281]
[1770234367789,3.52967604,94.175,94.084,3.85977281]
[1770234367994,3.52967604,94.216,94.121,3.85977281]
[1770234368188,3.52967604,94.269,94.143,3.85977281]
[1770234368690,3.52967604,94.269,94.151,3.85977281]
[1770234368892,13.09817604,94.239,94.151,3.85977281]
[1770234369190,7.92947356,94.28,94.151,3.85977281]
[1770234369191,3.52967604,94.238,94.151,3.85977281]
[1770234369493,3.52967604,94.238,94.166,3.85977281]
[1770234369689,3.52967604,94.279,94.166,3.85977281]
[1770234369994,3.52967604,94.279,94.131,149.0121]
[1770234369995,3.52967604,94.279,94.197,3.85977281]
[1770234370291,3.52967604,94.309,94.201,3.85977281]
[1770234370482,3.52967604,94.309,94.221,3.85977281]
[1770234370688,3.52967604,94.309,94.226,3.85977281]
[1770234370995,3.52967604,94.332,94.241,3.85977281]
[1770234371294,3.52967604,94.355,94.261,3.85977281]
[1770234371499,148.5057,94.453,94.237,148.8448]
[1770234371500,3.52967604,94.381,94.281,3.85977281]
[1770234371697,8.636e-05,94.351,94.281,3.85977281]
[1770234372096,3.5297624,94.351,94.259,3.85977281]
[1770234372284,3.52967604,94.349,94.211,3.85977281]
[1770234372790,8.636e-05,94.351,94.211,3.85977281]
[1770234372791,3.52967604,94.328,94.211,3.85977281]
[1770234372994,3.52967604,94.299,94.151,3.85977281]
[1770234373196,3.52967604,94.299,94.171,3.85977281]
[1770234373885,3.52967604,94.265,94.171,3.85977281]
[1770234374085,3.52967604,94.265,94.121,3.85977281]
[1770234374289,3.52967604,94.259,94.121,3.85977281]
[1770234374486,3.52967604,94.236,94.121,3.85977281]
[1770234375390,9.5693,94.231,94.121,3.85977281]
[1770234375594,148.7627,94.29,94.1,7.92947356]
[1770234375595,3.52967604,94.307,94.161,3.85977281]
[1770234375791,3.52967604,94.279,94.161,3.85977281]
[1770234375995,3.52967604,94.259,94.161,3.85977281]
[1770234377596,3.52967604,94.293,94.171,3.85977281]
[1770234377796,3.52967604,94.293,94.171,13.43507281]
[1770234378096,3.52967604,94.293,94.172,3.85977281]
[1770234378299,3.52967604,94.274,94.172,3.85977281]
[1770234378494,3.52967604,94.274,94.174,9.5749]
[1770234378698,3.52967604,94.274,94.175,3.85977281]
[1770234378894,9.5631,94.292,94.175,3.85977281]
[1770234379200,3.52967604,94.297,94.191,3.85977281]
[1770234379596,3.52967604,94.319,94.192,3.85977281]
[1770234379899,3.52967604,94.319,94.211,3.85977281]
[1770234380693,3.52967604,94.317,94.211,3.85977281]
[1770234381001,3.52967604,94.317,94.216,3.85977281]
[1770234381393,3.52967604,94.317,94.225,3.85977281]
[1770234382398,7.92947356,94.38,94.241,3.85977281]
[1770234382598,148.5443,94.428,94.241,3.85977281]
[1770234382599,3.52967604,94.36,94.281,3.85977281]
[1770234382801,3.52967604,94.36,94.294,13.42257281]
[1770234383003,3.52967604,94.36,94.261,3.85977281]
[1770234383300,3.52967604,94.359,94.261,3.85977281]
[1770234383608,3.52967604,94.33,94.238,3.85977281]
[1770234384000,3.84222835,94.328,94.215,3.86818307]
[1770234384401,3.84222835,94.317,94.215,3.86818307]
[1770234384605,3.84222835,94.299,94.181,3.86818307]
[1770234385306,9.5629,94.294,94.185,9.5738]
[1770234385510,3.84222835,94.293,94.186,3.86818307]
[1770234385695,3.84222835,94.279,94.161,3.86818307]
[1770234385903,3.84222835,94.229,94.161,3.86818307]
[1770234386203,3.84222835,94.229,94.138,3.86818307]
[1770234386403,3.84222835,94.226,94.138,3.86818307]
[1770234387106,3.84222835,94.226,94.141,9.5783]
[1770234387408,3.84222835,94.226,94.138,3.86818307]
[1770234387807,3.84222835,94.224,94.138,3.86818307]
[1770234388706,3.84222835,94.216,94.138,3.86818307]
[1770234389106,148.7853,94.276,94.046,149.1468]
[1770234389107,3.84222835,94.251,94.163,3.86818307]
[1770234390106,7.92947356,94.29,94.112,149.0419]
[1770234390107,3.84222835,94.276,94.18,3.86818307]
[1770234390509,3.84222835,94.276,94.14,7.92947356]
[1770234390510,3.84222835,94.276,94.191,3.86818307]
[1770234390806,3.84222835,94.329,94.195,3.86818307]
[1770234391006,3.84222835,94.329,94.211,3.86818307]
[1770234391200,3.84222835,94.329,94.231,3.86818307]
[1770234392011,3.84222835,94.329,94.176,148.941]
[1770234392012,3.84222835,94.329,94.233,3.86818307]
[1770234392405,8.636e-05,94.351,94.251,3.86818307]
[1770234392605,8.636e-05,94.351,94.272,9.565]
[1770234393303,8.636e-05,94.351,94.279,3.86818307]
[1770234394204,8.636e-05,94.351,94.253,3.86818307]
[1770234394606,3.84222835,94.338,94.253,3.86818307]
[1770234395208,13.40102835,94.334,94.253,3.86818307]
[1770234395912,3.84222835,94.334,94.254,3.86818307]
[1770234397117,3.84222835,94.334,94.256,3.86818307]
[1770234397709,3.84222835,94.334,94.258,3.86818307]
[1770234397910,8.636e-05,94.351,94.258,3.86818307]
[1770234398317,8.636e-05,94.351,94.235,3.86818307]
[1770234398318,3.84222835,94.334,94.235,3.86818307]
[1770234399220,3.84222835,94.328,94.236,9.5687]
[1770234399415,3.84222835,94.328,94.237,3.86818307]
[1770234399915,3.84222835,94.324,94.237,3.86818307]
[1770234400514,9.5608,94.314,94.237,3.86818307]
[1770234400711,3.84222835,94.324,94.237,3.86818307]
[1770234401216,3.84222835,94.324,94.253,3.86818307]
[1770234401911,3.84222835,94.324,94.255,3.86818307]
[1770234402111,13.40022835,94.341,94.255,3.86818307]
[1770234402316,3.84222835,94.34,94.255,3.86818307]
[1770234403118,8.636e-05,94.351,94.271,3.86818307]
[1770234403722,8.636e-05,94.351,94.283,9.5638]
[1770234404115,8.636e-05,94.351,94.284,3.86818307]
[1770234404922,8.636e-05,94.351,94.223,148.8672]
[1770234404923,8.636e-05,94.351,94.296,3.86818307]
[1770234406518,8.636e-05,94.351,94.301,3.86818307]
[1770234406917,8.636e-05,94.351,94.271,3.86818307]
[1770234407121,8.636e-05,94.351,94.279,3.86818307]
[1770234408713,8.636e-05,94.351,94.251,3.86818307]
[1770234408916,9.5603,94.319,94.251,3.86818307]
[1770234409123,3.84222835,94.328,94.251,3.86818307]
[1770234409623,3.84222835,94.328,94.253,3.86818307]
[1770234410218,3.84222835,94.328,94.256,3.86818307]
[1770234410416,3.84222835,94.349,94.261,3.86818307]
[1770234410924,8.636e-05,94.351,94.288,3.86818307]
[1770234411323,8.636e-05,94.351,94.248,31.98]
[1770234411324,8.636e-05,94.351,94.301,3.86818307]
[1770234412526,8.636e-05,94.351,94.247,19.1351]
[1770234412527,8.636e-05,94.351,94.302,3.86818307]
[1770234413227,3.84222835,94.404,94.317,3.86818307]
[1770234413433,3.84222835,94.481,94.331,3.86818307]
[1770234413624,3.84222835,94.453,94.355,3.86818307]
[1770234414226,3.53354605,94.425,94.355,3.86818307]
[1770234414430,3.53354605,94.425,94.333,3.53989047]
[1770234414635,3.53354605,94.425,94.31,3.53989047]
[1770234415024,3.53354605,94.386,94.289,3.53989047]
[1770234415729,3.53354605,94.372,94.289,3.53989047]
[1770234416128,3.53354605,94.369,94.251,3.53989047]
[1770234416427,3.53354605,94.359,94.251,3.53989047]
[1770234416629,9.5587,94.335,94.251,3.53989047]
[1770234416832,3.53354605,94.334,94.251,3.53989047]
[1770234417431,3.53354605,94.324,94.221,3.53989047]
[1770234418028,3.53354605,94.319,94.221,3.53989047]
[1770234419433,9.5609,94.313,94.221,3.53989047]
[1770234420736,3.53354605,94.319,94.224,3.9063921]
[1770234421433,3.65352493,94.364,94.261,3.9063921]
[1770234422031,3.65352493,94.361,94.261,3.9063921]
[1770234422227,3.65352493,94.419,94.261,3.9063921]
[1770234422731,3.65352493,94.396,94.304,3.9063921]
[1770234422941,3.65352493,94.419,94.304,3.9063921]
[1770234423133,3.65352493,94.419,94.271,148.7908]
[1770234423134,3.65352493,94.419,94.321,3.9063921]
[1770234423335,9.5528,94.393,94.321,3.9063921]
[1770234423734,3.65352493,94.393,94.281,3.9063921]
[1770234424438,3.65352493,94.378,94.281,3.9063921]
[1770234424838,9.5586,94.336,94.255,3.9063921]
[1770234425040,3.65352493,94.369,94.255,3.9063921]
[1770234425237,3.65352493,94.369,94.261,3.9063921]
[1770234425936,3.65352493,94.369,94.26,7.89985612]
[1770234425937,9.5562,94.36,94.28,3.9063921]
[1770234426744,9.5572,94.35,94.28,3.9063921]
[1770234427243,9.5571,94.351,94.28,3.9063921]
[1770234427445,3.65352493,94.369,94.28,3.9063921]
[1770234428042,9.5583,94.339,94.28,3.9063921]
[1770234428244,3.65352493,94.369,94.28,3.9063921]
[1770234428943,9.5582,94.34,94.28,3.9063921]
[1770234429340,3.65352493,94.369,94.28,3.9063921]
[1770234430151,9.5569,94.353,94.283,3.9063921]
[1770234430550,3.65352493,94.369,94.283,3.9063921]
[1770234431543,3.65352493,94.395,94.294,3.9063921]
[1770234431747,3.65352493,94.395,94.301,3.9063921]
[1770234432155,9.5528,94.393,94.313,3.9063921]
[1770234432455,3.65352493,94.395,94.313,3.9063921]
[1770234435256,9.5542,94.379,94.313,3.9063921]
[1770234435447,3.65352493,94.395,94.313,3.9063921]
[1770234436049,3.65352493,94.395,94.325,9.5596]
[1770234436250,3.65352493,94.395,94.326,3.9063921]
[1770234436650,3.65352493,94.395,94.27,51.1104]
[1770234436651,9.5506,94.415,94.341,3.9063921]
[1770234437359,9.5506,94.415,94.344,3.9063921]
[1770234438546,9.5517,94.404,94.344,3.9063921]
[1770234438759,3.65352493,94.418,94.344,3.9063921]
[1770234439152,9.5517,94.404,94.344,3.9063921]
[1770234439557,3.65352493,94.418,94.323,3.9063921]
[1770234439753,9.5535,94.387,94.325,3.9063921]
[1770234439953,3.65352493,94.418,94.325,3.9063921]
[1770234440154,3.65352493,94.397,94.308,3.9063921]
[1770234441353,9.5527,94.394,94.322,9.5599]
[1770234441955,9.5527,94.394,94.327,9.5594]
[1770234442156,9.5527,94.394,94.328,3.9063921]
[1770234442351,9.80671066,94.453,94.271,19.1302]
[1770234442352,3.65352493,94.448,94.341,3.9063921]
[1770234442758,3.65352493,94.448,94.352,3.9063921]
[1770234443059,9.5505,94.416,94.352,3.9063921]
[1770234443256,3.65352493,94.422,94.332,9.5589]
[1770234443457,3.65352493,94.422,94.32,7.89985612]
[1770234443458,3.65352493,94.422,94.333,3.9063921]
[1770234444155,9.5527,94.394,94.333,3.9063921]
[1770234444350,3.65352493,94.422,94.333,3.9063921]
[1770234444954,19.0909,94.466,94.333,3.9063921]
[1770234444955,3.67858455,94.405,94.333,3.9063921]
[1770234445762,9.5529,94.392,94.333,3.9063921]
[1770234445950,3.67858455,94.391,94.312,3.80757569]
[1770234446958,3.67858455,94.389,94.312,3.80757569]
[1770234447552,9.555,94.371,94.312,3.80757569]
[1770234448358,3.67858455,94.389,94.281,3.80757569]
[1770234448953,9.5572,94.35,94.281,13.37167569]
[1770234449166,9.5572,94.35,94.282,3.80757569]
[1770234449659,3.67858455,94.369,94.282,3.80757569]
[1770234449965,3.67858455,94.369,94.262,3.80757569]
[1770234450164,9.5604,94.318,94.262,3.80757569]
[1770234450366,9.5604,94.318,94.249,9.5673]
[1770234450763,4.96524562,94.367,94.212,19.1422]
[1770234450962,4.96524562,94.367,94.24,7.89985612]
[1770234451157,4.96524562,94.367,94.241,31.98]
[1770234451363,4.96754945,94.392,94.3,7.89985612]
[1770234451865,4.96754945,94.373,94.28,7.89985612]
[1770234452063,4.96754945,94.373,94.225,12.3764522]
[1770234452064,4.96754945,94.373,94.26,7.89985612]
[1770234453867,4.96754945,94.373,94.223,30.71772335]
[1770234453868,4.9545485,94.427,94.3,7.89985612]
[1770234454861,4.9545485,94.39,94.3,7.89985612]
[1770234455265,9.5546,94.375,94.3,7.89985612]
[1770234455464,4.94468188,94.374,94.289,9.5632]
[1770234456471,4.94468188,94.358,94.243,9.51772335]
[1770234456673,4.94468188,94.358,94.26,7.89985612]
[1770234457373,9.5584,94.338,94.264,9.5657]
[1770234457571,9.5584,94.338,94.26,7.89985612]
[1770234458062,9.5584,94.338,94.274,9.5647]
[1770234458870,9.5573,94.349,94.274,9.5647]
[1770234459571,9.5583,94.339,94.274,9.5647]
[1770234459773,4.95061093,94.367,94.28,7.89985612]
[1770234460270,4.95061093,94.391,94.3,7.89985612]
[1770234460569,4.95061093,94.391,94.306,9.5615]
[1770234461072,4.95061093,94.387,94.306,9.5615]
[1770234461272,4.95061093,94.387,94.3,7.89985612]
[1770234461273,4.95061093,94.387,94.316,9.5605]
[1770234461674,4.95238316,94.433,94.34,7.89985612]
[1770234462069,4.95238316,94.433,94.32,7.89985612]
[1770234462265,4.95238316,94.411,94.292,9.51772335]
[1770234462469,4.95238316,94.411,94.3,7.89985612]
[1770234462771,9.80671066,94.448,94.299,9.5623]
[1770234462772,4.95238316,94.4,94.299,9.5623]
[1770234462963,4.95238316,94.4,94.28,7.89985612]
[1770234462964,4.95238316,94.399,94.28,7.89985612]
[1770234463374,4.95238316,94.365,94.26,7.89985612]
[1770234463767,4.94553613,94.362,94.278,9.5643]
[1770234464169,4.94553613,94.362,94.26,7.89985612]
[1770234464568,4.94553613,94.36,94.26,7.89985612]
[1770234464980,4.94553613,94.36,94.24,7.89985612]
[1770234465275,4.94553613,94.342,94.22,7.89985612]
[1770234465675,4.92160161,94.337,94.22,7.89985612]
[1770234465978,4.92160161,94.337,94.2,7.89985612]
[1770234466275,4.92160161,94.308,94.18,7.89985612]
[1770234466483,4.92160161,94.279,94.15,7.89985612]
[1770234466775,4.92160161,94.279,94.17,7.89985612]
[1770234467372,4.92160161,94.277,94.175,9.5748]
[1770234468272,4.92160161,94.277,94.17,7.89985612]
[1770234469177,4.92160161,94.277,94.188,9.5735]
[1770234470073,4.90398073,94.276,94.176,9.5747]
[1770234470470,4.90398073,94.276,94.17,7.89985612]
[1770234470675,4.90398073,94.271,94.17,7.89985612]
[1770234471178,4.90398073,94.261,94.164,9.576]
[1770234471574,4.90398073,94.261,94.175,9.5748]
[1770234471873,4.80440633,94.309,94.17,7.89985612]
[1770234472281,4.80440633,94.269,94.14,7.89985612]
[1770234472780,9.5679,94.244,94.16,9.5764]
[1770234472984,4.80440633,94.243,94.16,9.5764]
[1770234474082,9.5683,94.241,94.16,9.5764]
[1770234475086,14.3691262,94.241,94.16,9.5764]
[1770234475584,4.8008262,94.241,94.172,9.5752]
[1770234476178,4.85914361,94.262,94.172,9.5752]
[1770234476376,4.85914361,94.262,94.18,7.90749699]
[1770234476780,4.85914361,94.262,94.193,9.573]
[1770234477283,4.85914361,94.262,94.18,7.90749699]
[1770234477780,4.85914361,94.262,94.205,9.5717]
[1770234477981,4.86442357,94.278,94.205,9.5717]
[1770234479686,9.5645,94.277,94.205,9.5717]
[1770234479881,4.87156742,94.276,94.205,9.5717]
[1770234480086,4.87156742,94.276,94.19,7.90749699]
[1770234480284,4.87156742,94.276,94.218,9.5704]
[1770234480483,4.87156742,94.276,94.19,7.90749699]
[1770234481185,9.566,94.263,94.19,7.90749699]
[1770234481579,9.566,94.263,94.114,149.0387]
[1770234481580,4.87156742,94.276,94.17,7.90749699]
[1770234481981,4.87156742,94.276,94.19,7.90749699]
[1770234482184,4.87156742,94.276,94.209,9.5714]
[1770234482487,19.1158,94.343,94.149,148.9831]
[1770234482488,4.86629767,94.297,94.21,7.90749699]
[1770234482986,4.86629767,94.297,94.237,9.5685]
[1770234483186,4.86629767,94.297,94.21,7.90749699]
[1770234483786,4.86629767,94.297,94.217,9.5706]
[1770234484082,4.86629767,94.297,94.19,7.90749699]
[1770234484784,4.86840557,94.27,94.18,7.90749699]
[1770234485179,4.86840557,94.27,94.16,7.90749699]
[1770234485580,19.1209,94.318,94.101,149.059]
[1770234485581,4.90085231,94.261,94.18,7.90749699]
[1770234486183,4.90085231,94.261,94.196,9.5727]
[1770234486380,4.90085231,94.261,94.18,7.90749699]
[1770234486584,4.90085231,94.261,94.156,19.1537]
[1770234486585,4.90085231,94.261,94.16,7.90749699]
[1770234486784,14.46845231,94.248,94.16,7.90749699]
[1770234487187,4.90085231,94.247,94.16,7.90749699]
[1770234487588,4.8935959,94.242,94.16,7.90749699]
[1770234487789,4.8935959,94.242,94.14,7.90749699]
[1770234487991,4.8935959,94.242,94.103,19.1644]
[1770234487992,4.8935959,94.242,94.12,7.90749699]
[1770234488181,4.8935959,94.231,94.159,9.5765]
[1770234488487,4.8935959,94.231,94.075,149.1016]
[1770234488790,4.8935959,94.231,94.159,9.5764]
[1770234488993,4.8935959,94.231,94.14,7.90749699]
[1770234489386,14.46492378,94.227,94.144,9.578]
[1770234489592,4.89522378,94.226,94.12,7.90749699]
[1770234490194,4.89522378,94.224,94.152,9.5771]
[1770234490991,4.89522378,94.219,94.142,9.5782]
[1770234491491,4.93306785,94.217,94.142,9.5782]
[1770234491686,4.93306785,94.217,94.152,9.5772]
[1770234492391,4.93306785,94.238,94.14,7.90749699]
[1770234493490,4.93570669,94.358,94.172,148.9481]
[1770234493797,4.93570669,94.349,94.25,7.90749699]
[1770234494094,7.90749699,94.45,94.31,7.90749699]
[1770234494283,4.93570669,94.472,94.35,7.90749699]
[1770234494484,4.93570669,94.46,94.37,7.90749699]
[1770234494685,4.93570669,94.46,94.36,7.90749699]
[1770234494994,9.76550485,94.528,94.32,7.90749699]
[1770234494995,4.93570669,94.496,94.4,7.90749699]
[1770234495191,4.93570669,94.496,94.38,7.90749699]
[1770234495492,4.93570669,94.496,94.307,148.7333]
[1770234495493,9.5371,94.549,94.449,2.62714492]
[1770234495685,148.2765,94.599,94.451,2.62714492]
[1770234495891,13.01312396,94.629,94.47,7.90749699]
[1770234495892,7.90749699,94.62,94.47,7.90749699]
[1770234496192,7.90749699,94.62,94.41,7.90749699]
[1770234496193,7.90749699,94.56,94.418,2.62714492]
[1770234496391,7.90749699,94.54,94.418,2.62714492]
[1770234496587,7.90749699,94.51,94.37,7.90749699]
[1770234496793,156.19879699,94.59,94.364,2.62714492]
[1770234496794,7.90749699,94.49,94.364,2.62714492]
[1770234496995,7.90749699,94.47,94.364,2.62714492]
[1770234497196,7.90749699,94.49,94.364,2.62714492]
[1770234497493,3.83046773,94.519,94.422,9.5498]
[1770234497695,3.83046773,94.519,94.43,7.90749699]
[1770234497887,2.77948636,94.573,94.436,2.45579727]
[1770234497888,3.83046773,94.559,94.436,2.45579727]
[1770234498087,3.83046773,94.539,94.422,9.5498]
[1770234498288,3.83046773,94.539,94.431,2.45579727]
[1770234498490,3.83046773,94.566,94.47,7.90749699]
[1770234498693,3.83046773,94.566,94.471,9.5449]
[1770234498893,3.83046773,94.566,94.455,2.45579727]
[1770234499196,3.83046773,94.566,94.333,9.46865069]
[1770234499197,3.83046773,94.625,94.531,2.45579727]
[1770234499493,3.83046773,94.693,94.551,2.11676551]
[1770234499693,3.83046773,94.693,94.5,7.90749699]
[1770234499694,3.83046773,94.693,94.546,2.11676551]
[1770234499895,3.83046773,94.659,94.519,2.11676551]
[1770234500193,3.83046773,94.639,94.51,7.90749699]
[1770234500391,3.83046773,94.639,94.511,2.11676551]
[1770234500595,3.83046773,94.639,94.516,2.11676551]
[1770234500791,148.0824,94.723,94.542,296.7296]
[1770234500792,3.83046773,94.723,94.542,296.7296]
[1770234500993,3.83046773,94.723,94.573,2.11676551]
[1770234501198,3.83046773,94.723,94.566,148.3261]
[1770234501199,3.83046773,94.723,94.601,2.11676551]
[1770234501787,3.83046773,94.723,94.526,148.3896]
[1770234501788,9.5217,94.701,94.561,1.96814651]
[1770234501988,3.83046773,94.7,94.561,1.96814651]
[1770234502399,3.83046773,94.68,94.54,20.03452235]
[1770234502591,3.83046773,94.68,94.53,1.96814651]
[1770234502998,3.83046773,94.677,94.53,1.96814651]
[1770234503192,3.83046773,94.666,94.502,1.96814651]
[1770234503394,3.83046773,94.666,94.55,20.03452235]
[1770234503592,3.83046773,94.724,94.592,1.95222029]
[1770234503797,3.83046773,94.724,94.611,1.95222029]
[1770234503989,3.55624674,94.72,94.581,1.92938897]
[1770234504395,3.55624674,94.72,94.55,20.03452235]
[1770234504396,3.55624674,94.71,94.551,1.92938897]
[1770234504600,3.55624674,94.694,94.551,1.92938897]
[1770234505099,3.55624674,94.692,94.551,1.92938897]